fUSD/lending_fUSD_20250209
["ID","MTS","AMOUNT","RATE_DAILY","PERIOD"]
[352427155,1739097046645,-500.0,0.00010496,2]
[352427157,1739097046654,-500.0,0.00010496,2]
[352427159,1739097046664,-500.0,0.00010496,2]
[352427161,1739097046673,-500.0,0.00010496,2]
[352427163,1739097046682,-500.0,0.00010496,2]
[352427165,1739097046691,-500.0,0.00010496,2]
[352427167,1739097046701,-568.94,0.00010496,2]
[352427169,1739097046710,-500.0,0.00010496,2]
[352427171,1739097046719,-772.68,0.00010496,2]
[352427173,1739097046728,-500.0,0.00010496,2]
[352427175,1739097046737,-519.13,0.00010496,2]
[352427177,1739097046746,-500.0,0.00010496,2]
[352427179,1739097046754,-500.0,0.00010496,2]
[352427180,1739097046763,-500.0,0.00010496,2]
[352427183,1739097046773,-500.0,0.00010496,2]
[352427184,1739097046782,-500.0,0.00010496,2]
[352427186,1739097046791,-500.0,0.00010496,2]
[352427188,1739097046800,-500.0,0.00010496,2]
[352427190,1739097046810,-500.0,0.00010496,2]
[352427192,1739097046820,-706.68,0.00010496,2]
[352427194,1739097046829,-837.08,0.00010496,2]
[352427196,1739097046838,-547.36,0.00010496,2]
[352427198,1739097046847,-505.2132877,0.00010496,2]
[352427200,1739097046856,-500.0,0.00010496,2]
[352427202,1739097046865,-500.0,0.00010496,2]
[352427204,1739097046875,-500.0,0.00010496,2]
[352427206,1739097046884,-500.0,0.00010496,2]
[352427208,1739097046893,-500.0,0.00010496,2]
[352427210,1739097046903,-500.0,0.00010496,2]
[352427212,1739097046913,-500.0,0.00010496,2]
[352427214,1739097046922,-877.63,0.00010496,2]
[352427216,1739097046932,-528.49,0.00010496,2]
[352427218,1739097046942,-500.0,0.00010496,2]
[352427220,1739097046951,-1037.98,0.00010496,2]
[352427222,1739097046960,-155.788179,0.00010496,2]
[352427224,1739097046969,-631.92,0.00010496,2]
[352427226,1739097046979,-1382.22,0.00010496,2]
[352427228,1739097046988,-951.83,0.00010496,2]
[352427230,1739097046998,-997.53,0.00010496,2]
[352427232,1739097047007,-500.0,0.00010496,2]
[352427234,1739097047016,-500.0,0.00010496,2]
[352427236,1739097047026,-570.513618,0.00010496,2]
[352427262,1739097047267,-500.0,0.00010496,2]
[352427264,1739097047276,-507.93,0.00010496,2]
[352427265,1739097047286,-500.0,0.00010496,2]
[352427267,1739097047295,-500.0,0.00010496,2]
[352427269,1739097047304,-743.842668,0.00010496,2]
[352427271,1739097047313,-500.0,0.00010496,2]
[352427273,1739097047323,-706.31,0.00010496,2]
[352427275,1739097047332,-331.38868917,0.00010496,2]
[352427277,1739097047341,-155.948277,0.00010496,2]
[352427279,1739097047351,-769.56,0.00010496,2]
[352427281,1739097047360,-598.47,0.00010496,2]
[352427283,1739097047370,-500.0,0.00010496,2]
[352427285,1739097047379,-554.13,0.00010496,2]
[352427287,1739097047389,-500.0,0.00010496,2]
[352427289,1739097047399,-500.0,0.00010496,2]
[352427291,1739097047408,-810.12,0.00010496,2]
[352427293,1739097047422,-2250.0,0.00010496,2]
[352427295,1739097047431,-500.0,0.00010496,2]
[352427297,1739097047441,-1026.1,0.00010496,2]
[352427299,1739097047451,-862.87,0.00010496,2]
[352427301,1739097047462,-942.5,0.00010496,2]
[352427303,1739097047471,-500.0,0.00010496,2]
[352427305,1739097047481,-500.0,0.00010496,2]
[352427308,1739097047492,-993.32,0.00010496,2]
[352427309,1739097047502,-2547.11,0.00010496,2]
[352427312,1739097047511,-500.0,0.00010496,2]
[352427313,1739097047519,-515.77,0.00010496,2]
[352427314,1739097047529,-500.0,0.00010496,2]
[352427315,1739097047539,-1113.02,0.00010496,2]
[352427316,1739097047548,-750.06,0.00010496,2]
[352427317,1739097047558,-500.0,0.00010496,2]
[352427318,1739097047567,-500.0,0.00010496,2]
[352427319,1739097047577,-932.67,0.00010496,2]
[352427320,1739097047587,-500.0,0.00010496,2]
[352427321,1739097047596,-2031.56,0.00010496,2]
[352427322,1739097047606,-927.94,0.00010496,2]
[352427323,1739097047615,-500.0,0.00010496,2]
[352427324,1739097047624,-1320.82,0.00010496,2]
[352427325,1739097047633,-500.0,0.00010496,2]
[352427327,1739097047643,-500.0,0.00010496,2]
[352427328,1739097047653,-1127.66,0.00010496,2]
[352427330,1739097047663,-524.83,0.00010496,2]
[352427333,1739097047672,-903.53,0.00010496,2]
[352427335,1739097047682,-500.0,0.00010496,2]
[352427337,1739097047691,-500.0,0.00010496,2]
[352427338,1739097047700,-500.0,0.00010496,2]
[352427340,1739097047709,-500.0,0.00010496,2]
[352427343,1739097047719,-500.0,0.00010496,2]
[352427345,1739097047728,-622.53,0.00010496,2]
[352427346,1739097047738,-598.35,0.00010496,2]
[352427348,1739097047748,-500.0,0.00010496,2]
[352427350,1739097047758,-555.78,0.00010496,2]
[352427352,1739097047767,-500.0,0.00010497,2]
[352427354,1739097047776,-500.0,0.00010497,2]
[352427356,1739097047786,-500.0,0.00010497,2]
[352427358,1739097047796,-550.55,0.00010497,2]
[352427360,1739097047805,-500.0,0.00010497,2]
[352427362,1739097047815,-501.10167766,0.00010497,2]
[352427364,1739097047825,-500.0,0.00010497,2]
[352427366,1739097047834,-623.48,0.00010497,2]
[352427368,1739097047846,-431.03616669,0.00010497,2]
[352427370,1739097047855,-500.0,0.00010497,2]
[352427372,1739097047865,-500.0,0.00010497,2]
[352427374,1739097047875,-500.0,0.00010497,2]
[352427376,1739097047884,-500.0,0.00010497,2]
[352427378,1739097047894,-500.0,0.00010497,2]
[352427380,1739097047903,-500.0,0.00010497,2]
[352427382,1739097047913,-500.0,0.00010497,2]
[352427384,1739097047922,-500.0,0.00010497,2]
[352427386,1739097047932,-613.12,0.00010497,2]
[352427388,1739097047942,-500.0,0.00010497,2]
[352427390,1739097047952,-500.0,0.00010497,2]
[352427392,1739097047962,-570.84,0.00010497,2]
[352427394,1739097047971,-500.0,0.00010497,2]
[352427396,1739097047980,-500.0,0.00010497,2]
[352427398,1739097047990,-500.0,0.00010497,2]
[352427400,1739097048000,-564.08,0.00010497,2]
[352427402,1739097048011,-500.0,0.00010497,2]
[352427404,1739097048022,-500.0,0.00010497,2]
[352427406,1739097048034,-500.0,0.00010497,2]
[352427408,1739097048044,-541.88,0.00010497,2]
[352427410,1739097048054,-500.0,0.00010497,2]
[352427412,1739097048065,-500.0,0.00010497,2]
[352427414,1739097048077,-500.0,0.00010497,2]
[352427416,1739097048089,-500.0,0.00010497,2]
[352427418,1739097048099,-500.0,0.00010497,2]
[352427420,1739097048109,-500.0,0.00010497,2]
[352427422,1739097048118,-604.28,0.00010497,2]
[352427424,1739097048129,-500.0,0.00010497,2]
[352427426,1739097048139,-500.0,0.00010497,2]
[352427428,1739097048149,-500.0,0.00010497,2]
[352427430,1739097048160,-608.2,0.00010497,2]
[352427432,1739097048170,-500.0,0.00010497,2]
[352427433,1739097048180,-563.64,0.00010497,2]
[352427436,1739097048191,-500.0,0.00010497,2]
[352427437,1739097048201,-500.0,0.00010497,2]
[352427439,1739097048212,-500.0,0.00010497,2]
[352427441,1739097048222,-500.0,0.00010497,2]
[352427443,1739097048232,-500.0,0.00010497,2]
[352427445,1739097048243,-500.0,0.00010497,2]
[352427447,1739097048252,-500.0,0.00010497,2]
[352427449,1739097048263,-502.0591427,0.00010497,2]
[352427451,1739097048273,-938.53,0.00010497,2]
[352427453,1739097048283,-754.64,0.00010497,2]
[352427455,1739097048294,-500.0,0.00010497,2]
[352427457,1739097048304,-502.74524634,0.00010497,2]
[352427459,1739097048314,-500.0,0.00010497,2]
[352427461,1739097048323,-500.0,0.00010497,2]
[352427463,1739097048333,-501.85892391,0.00010497,2]
[352427465,1739097048343,-500.0,0.00010497,2]
[352427467,1739097048354,-500.0,0.00010497,2]
[352427469,1739097048364,-500.0,0.00010497,2]
[352427471,1739097048375,-500.0,0.00010497,2]
[352427473,1739097048385,-500.0,0.00010497,2]
[352427475,1739097048395,-503.41885983,0.00010497,2]
[352427477,1739097048406,-500.0,0.00010497,2]
[352427479,1739097048421,-500.0,0.00010497,2]
[352427481,1739097048431,-370.92956257,0.00010497,2]
[352427483,1739097048441,-591.45,0.00010497,2]
[352427485,1739097048451,-500.0,0.00010497,2]
[352427487,1739097048463,-500.0,0.00010497,2]
[352427489,1739097048473,-586.08188178,0.00010497,2]
[352427491,1739097048483,-500.84408562,0.00010497,2]
[352427493,1739097048494,-500.0,0.00010497,2]
[352427495,1739097048504,-500.0,0.00010497,2]
[352427496,1739097048514,-627.83,0.00010497,2]
[352427499,1739097048525,-561.17,0.00010497,2]
[352427500,1739097048536,-500.0,0.00010497,2]
[352427503,1739097048547,-316.29340586,0.00010497,2]
[352427505,1739097048558,-557.89,0.00010497,2]
[352427506,1739097048568,-689.81,0.00010497,2]
[352427508,1739097048580,-500.0,0.00010497,2]
[352427510,1739097048591,-553.61,0.00010497,2]
[352427512,1739097048601,-500.0,0.00010497,2]
[352427514,1739097048612,-500.0,0.00010497,2]
[352427516,1739097048623,-500.0,0.00010497,2]
[352427518,1739097048634,-622.59,0.00010497,2]
[352427520,1739097048645,-500.0,0.00010497,2]
[352427522,1739097048656,-609.73,0.00010497,2]
[352427524,1739097048667,-500.0,0.00010497,2]
[352427526,1739097048677,-500.0,0.00010497,2]
[352427528,1739097048687,-500.0,0.00010497,2]
[352427530,1739097048697,-833.28,0.00010497,2]
[352427532,1739097048707,-738.46,0.00010497,2]
[352427534,1739097048717,-500.0,0.00010497,2]
[352427536,1739097048728,-1320.9,0.00010497,2]
[352427538,1739097048738,-506.95028005,0.00010497,2]
[352427540,1739097048748,-504.89439029,0.00010497,2]
[352427542,1739097048757,-505.58660641,0.00010497,2]
[352427544,1739097048767,-725.4,0.00010497,2]
[352427546,1739097048776,-606.79,0.00010497,2]
[352427548,1739097048786,-1461.23,0.00010497,2]
[352427550,1739097048796,-500.0,0.00010497,2]
[352427552,1739097048806,-500.0,0.00010497,2]
[352427554,1739097048816,-706.38,0.00010497,2]
[352427556,1739097048828,-3198.21,0.00010497,2]
[352427558,1739097048838,-1218.56,0.00010497,2]
[352427560,1739097048848,-500.0,0.00010497,2]
[352427562,1739097048858,-1340.91,0.00010497,2]
[352427564,1739097048868,-520.57,0.00010497,2]
[352427566,1739097048878,-837.04,0.00010497,2]
[352427568,1739097048888,-500.0,0.00010497,2]
[352427570,1739097048899,-500.0,0.00010497,2]
[352427572,1739097048908,-500.0,0.00010497,2]
[352427574,1739097048919,-1459.71,0.00010497,2]
[352427576,1739097048931,-909.11,0.00010497,2]
[352427578,1739097048942,-506.58004589,0.00010497,2]
[352427580,1739097048953,-500.0,0.00010497,2]
[352427582,1739097048963,-643.62688695,0.00010497,2]
[352427584,1739097048973,-500.0,0.00010497,2]
[352427586,1739097048982,-500.0,0.00010497,2]
[352427588,1739097048993,-500.0,0.00010497,2]
[352427590,1739097049004,-502.71540294,0.00010497,2]
[352427592,1739097049014,-588.37,0.00010497,2]
[352427594,1739097049024,-586.82,0.00010497,2]
[352427596,1739097049034,-705.08,0.00010497,2]
[352427598,1739097049045,-500.0,0.00010497,2]
[352427600,1739097049055,-547.53,0.00010497,2]
[352427602,1739097049065,-500.0,0.00010497,2]
[352427604,1739097049075,-933.25,0.00010497,2]
[352427606,1739097049085,-1050.86,0.00010497,2]
[352427607,1739097049095,-500.0,0.00010497,2]
[352427609,1739097049106,-206.36151587,0.00010497,2]
[352427611,1739097049117,-653.61,0.00010497,2]
[352427613,1739097049128,-500.0,0.00010497,2]
[352427615,1739097049138,-500.0,0.00010497,2]
[352427617,1739097049148,-500.0,0.00010497,2]
[352427619,1739097049159,-500.0,0.00010497,2]
[352427621,1739097049169,-500.0,0.00010497,2]
[352427623,1739097049179,-557.6,0.00010497,2]
[352427625,1739097049190,-530.22,0.00010497,2]
[352427627,1739097049200,-1011.4,0.00010497,2]
[352427629,1739097049210,-500.0,0.00010497,2]
[352427631,1739097049220,-608.74,0.00010497,2]
[352427633,1739097049231,-838.15,0.00010497,2]
[352427635,1739097049241,-500.0,0.00010497,2]
[352427637,1739097049251,-500.0,0.00010497,2]
[352427639,1739097049262,-500.0,0.00010497,2]
[352427641,1739097049273,-500.0,0.00010497,2]
[352427643,1739097049283,-1037.59,0.00010497,2]
[352427645,1739097049293,-500.0,0.00010497,2]
[352427647,1739097049303,-500.0,0.00010498,2]
[352427649,1739097049314,-500.0,0.00010498,2]
[352427651,1739097049324,-558.64,0.00010498,2]
[352427653,1739097049336,-890.54,0.00010498,2]
[352427655,1739097049346,-500.0,0.00010498,2]
[352427657,1739097049356,-500.0,0.00010498,2]
[352427659,1739097049365,-500.0,0.00010498,2]
[352427661,1739097049376,-500.0,0.00010498,2]
[352427663,1739097049386,-500.0,0.00010498,2]
[352427665,1739097049396,-535.83,0.00010498,2]
[352427667,1739097049406,-508.34790214,0.00010498,2]
[352427669,1739097049419,-500.0,0.00010499,2]
[352427671,1739097049430,-177.38883594,0.00010499,2]
[352427673,1739097049440,-501.27658727,0.00010499,2]
[352427675,1739097049450,-212.73284906,0.00010499,2]
[352427677,1739097049461,-500.0,0.00010499,2]
[352427679,1739097049472,-500.0,0.00010499,2]
[352427681,1739097049482,-500.0,0.00010499,2]
[352427683,1739097049494,-503.61540392,0.00010499,2]
[352427685,1739097049504,-500.0,0.00010499,2]
[352427687,1739097049514,-500.0,0.00010499,2]
[352427689,1739097049524,-500.0,0.00010499,2]
[352427691,1739097049534,-500.0,0.00010499,2]
[352427693,1739097049544,-504.11760088,0.00010499,2]
[352427695,1739097049553,-500.0,0.00010499,2]
[352427697,1739097049563,-500.0,0.00010499,2]
[352427699,1739097049572,-500.0,0.00010499,2]
[352427701,1739097049581,-500.0,0.00010499,2]
[352427703,1739097049592,-500.0,0.00010499,2]
[352427705,1739097049601,-500.0,0.00010499,2]
[352427707,1739097049611,-500.0,0.00010499,2]
[352427709,1739097049621,-500.0,0.00010499,2]
[352427711,1739097049631,-500.0,0.00010499,2]
[352427712,1739097049640,-500.0,0.00010499,2]
[352427715,1739097049650,-500.0,0.00010499,2]
[352427716,1739097049659,-502.70068354,0.00010499,2]
[352427719,1739097049668,-500.0,0.00010499,2]
[352427721,1739097049677,-500.0,0.00010499,2]
[352427722,1739097049687,-500.0,0.00010499,2]
[352427724,1739097049696,-500.0,0.00010499,2]
[352427726,1739097049706,-500.0,0.00010499,2]
[352427728,1739097049715,-500.0,0.00010499,2]
[352427730,1739097049724,-500.0,0.00010499,2]
[352427732,1739097049734,-500.0,0.00010499,2]
[352427734,1739097049744,-500.0,0.00010499,2]
[352427736,1739097049753,-500.0,0.00010499,2]
[352427738,1739097049762,-500.0,0.00010499,2]
[352427740,1739097049772,-500.0,0.00010499,2]
[352427742,1739097049781,-500.0,0.00010499,2]
[352427744,1739097049790,-500.0,0.00010499,2]
[352427746,1739097049799,-500.0,0.00010499,2]
[352427748,1739097049808,-500.0,0.00010499,2]
[352427750,1739097049818,-500.0,0.00010499,2]
[352427752,1739097049827,-371.36,0.000105,2]
[352427754,1739097049836,-175.18,0.00010533,2]
[352427756,1739097049845,-150.0,0.00010598,2]
[352427758,1739097049856,-500.0,0.0001063,2]
[352427760,1739097049865,-500.0,0.00010632,2]
[352427762,1739097049874,-500.0,0.00010632,2]
[352427764,1739097049884,-500.0,0.00010632,2]
[352427766,1739097049893,-500.0,0.00010632,2]
[352427768,1739097049902,-500.0,0.00010632,2]
[352427770,1739097049911,-500.0,0.00010632,2]
[352427772,1739097049921,-500.0,0.00010632,2]
[352427774,1739097049930,-500.0,0.00010632,2]
[352427776,1739097049939,-500.0,0.00010632,2]
[352427778,1739097049948,-500.58524479,0.00010632,2]
[352427780,1739097049957,-500.0,0.00010632,2]
[352427782,1739097049966,-500.0,0.00010632,2]
[352427783,1739097049975,-500.0,0.00010632,2]
[352427784,1739097049984,-500.0,0.00010632,2]
[352427785,1739097049994,-500.0,0.00010632,2]
[352427786,1739097050004,-500.0,0.00010632,2]
[352427787,1739097050017,-500.0,0.00010632,2]
[352427788,1739097050029,-500.0,0.00010632,2]
[352427789,1739097050042,-500.0,0.00010632,2]
[352427790,1739097050055,-500.0,0.00010632,2]
[352427791,1739097050068,-500.0,0.00010632,2]
[352427793,1739097050078,-500.0,0.00010632,2]
[352427795,1739097050088,-500.0,0.00010632,2]
[352427797,1739097050100,-500.0,0.00010632,2]
[352427800,1739097050111,-500.0,0.00010632,2]
[352427802,1739097050123,-500.0,0.00010632,2]
[352427804,1739097050135,-500.0,0.00010632,2]
[352427806,1739097050146,-500.0,0.00010632,2]
[352427809,1739097050158,-500.0,0.00010632,2]
[352427811,1739097050169,-705.51,0.00010632,2]
[352427813,1739097050181,-500.0,0.00010632,2]
[352427815,1739097050194,-500.0,0.00010632,2]
[352427818,1739097050205,-500.0,0.00010632,2]
[352427820,1739097050216,-504.77612797,0.00010632,2]
[352427822,1739097050227,-500.0,0.00010632,2]
[352427824,1739097050238,-500.0,0.00010632,2]
[352427826,1739097050248,-500.0,0.00010632,2]
[352427828,1739097050258,-449.05453843,0.00010632,2]
[352427830,1739097050269,-500.0,0.00010632,2]
[352427833,1739097050281,-500.0,0.00010632,2]
[352427835,1739097050292,-513.75636905,0.00010632,2]
[352427837,1739097050303,-500.0,0.00010632,2]
[352427839,1739097050315,-500.0,0.00010632,2]
[352427842,1739097050327,-501.61531479,0.00010632,2]
[352427844,1739097050337,-500.0,0.00010632,2]
[352427846,1739097050349,-500.0,0.00010632,2]
[352427848,1739097050360,-502.33396658,0.00010632,2]
[352427850,1739097050371,-571.09,0.00010632,2]
[352427853,1739097050383,-500.0,0.00010632,2]
[352427855,1739097050394,-500.0,0.00010632,2]
[352427857,1739097050405,-500.0,0.00010632,2]
[352427859,1739097050422,-500.0,0.00010632,2]
[352427862,1739097050433,-500.0,0.00010632,2]
[352427864,1739097050444,-500.0,0.00010632,2]
[352427866,1739097050456,-500.0,0.00010632,2]
[352427868,1739097050467,-529.46,0.00010632,2]
[352427870,1739097050479,-500.0,0.00010632,2]
[352427873,1739097050491,-500.0,0.00010632,2]
[352427875,1739097050500,-500.0,0.00010632,2]
[352427877,1739097050511,-500.0,0.00010632,2]
[352427879,1739097050523,-500.0,0.00010632,2]
[352427881,1739097050534,-500.0,0.00010632,2]
[352427884,1739097050546,-500.0,0.00010632,2]
[352427886,1739097050556,-500.0,0.00010632,2]
[352427888,1739097050567,-500.0,0.00010632,2]
[352427890,1739097050582,-500.0,0.00010632,2]
[352427893,1739097050594,-500.0,0.00010632,2]
[352427895,1739097050604,-500.0,0.00010632,2]
[352427897,1739097050614,-500.0,0.00010632,2]
[352427899,1739097050624,-500.0,0.00010632,2]
[352427901,1739097050635,-500.0,0.00010632,2]
[352427903,1739097050646,-500.0,0.00010632,2]
[352427906,1739097050660,-500.0,0.00010632,2]
[352427908,1739097050673,-500.0,0.00010632,2]
[352427910,1739097050684,-500.0,0.00010632,2]
[352427912,1739097050694,-500.0,0.00010632,2]
[352427914,1739097050704,-500.0,0.00010632,2]
[352427916,1739097050714,-500.0,0.00010632,2]
[352427919,1739097050724,-500.0,0.00010632,2]
[352427921,1739097050734,-500.0,0.00010632,2]
[352427923,1739097050745,-500.0,0.00010632,2]
[352427925,1739097050756,-500.0,0.00010632,2]
[352427928,1739097050769,-500.0,0.00010632,2]
[352427930,1739097050781,-500.0,0.00010632,2]
[352427932,1739097050791,-500.0,0.00010632,2]
[352427934,1739097050801,-502.29314947,0.00010632,2]
[352427936,1739097050811,-500.0,0.00010632,2]
[352427938,1739097050821,-500.0,0.00010632,2]
[352427940,1739097050831,-500.0,0.00010632,2]
[352427943,1739097050842,-500.0,0.00010632,2]
[352427945,1739097050853,-500.0,0.00010632,2]
[352427947,1739097050864,-500.0,0.00010632,2]
[352427949,1739097050874,-500.0,0.00010632,2]
[352427951,1739097050884,-500.0,0.00010632,2]
[352427953,1739097050895,-500.0,0.00010632,2]
[352427955,1739097050906,-500.0,0.00010632,2]
[352427958,1739097050917,-508.45433534,0.00010632,2]
[352427960,1739097050928,-500.68028204,0.00010632,2]
[352427962,1739097050939,-500.0,0.00010632,2]
[352427964,1739097050950,-500.0,0.00010632,2]
[352427966,1739097050961,-500.0,0.00010632,2]
[352427969,1739097050972,-500.0,0.00010632,2]
[352427971,1739097050983,-500.0,0.00010632,2]
[352427974,1739097051000,-500.0,0.00010632,2]
[352427976,1739097051011,-500.0,0.00010632,2]
[352427978,1739097051023,-500.0,0.00010632,2]
[352427980,1739097051034,-500.0,0.00010632,2]
[352427982,1739097051044,-500.0,0.00010632,2]
[352427985,1739097051055,-500.0,0.00010632,2]
[352427987,1739097051066,-500.0,0.00010632,2]
[352427990,1739097051082,-546.38892662,0.00010632,2]
[352427992,1739097051093,-500.0,0.00010632,2]
[352427994,1739097051104,-537.64,0.00010632,2]
[352427996,1739097051114,-500.0,0.00010632,2]
[352427998,1739097051125,-585.81787053,0.00010632,2]
[352428000,1739097051135,-505.26018842,0.00010632,2]
[352428002,1739097051145,-580.41897928,0.00010632,2]
[352428005,1739097051156,-500.0,0.00010632,2]
[352428007,1739097051167,-1208.49,0.00010632,2]
[352428009,1739097051178,-500.0,0.00010632,2]
[352428011,1739097051189,-500.0,0.00010632,2]
[352428013,1739097051199,-1590.45,0.00010632,2]
[352428015,1739097051209,-587.9,0.00010632,2]
[352428017,1739097051220,-705.47,0.00010632,2]
[352428020,1739097051230,-500.0,0.00010632,2]
[352428022,1739097051241,-503.50028185,0.00010632,2]
[352428024,1739097051251,-794.34,0.00010632,2]
[352428026,1739097051263,-500.0,0.00010632,2]
[352428028,1739097051273,-500.0,0.00010632,2]
[352428030,1739097051284,-358.9288247,0.00010632,2]
[352428033,1739097051295,-774.72,0.00010632,2]
[352428035,1739097051305,-841.69,0.00010632,2]
[352428037,1739097051315,-500.0,0.00010632,2]
[352428039,1739097051326,-739.95,0.00010632,2]
[352428041,1739097051336,-222.51218307,0.00010632,2]
[352428043,1739097051346,-806.4,0.00010632,2]
[352428045,1739097051358,-500.0,0.00010632,2]
[352428048,1739097051368,-1119.84,0.00010632,2]
[352428050,1739097051380,-507.07111301,0.00010632,2]
[352428052,1739097051390,-500.0,0.00010632,2]
[352428054,1739097051400,-500.0,0.00010632,2]
[352428056,1739097051412,-858.48,0.00010632,2]
[352428059,1739097051424,-500.0,0.00010632,2]
[352428061,1739097051434,-522.11,0.00010632,2]
[352428063,1739097051444,-1055.37,0.00010632,2]
[352428065,1739097051455,-500.0,0.00010632,2]
[352428067,1739097051466,-1039.19,0.00010632,2]
[352428069,1739097051476,-500.0,0.00010632,2]
[352428071,1739097051489,-500.0,0.00010632,2]
[352428073,1739097051499,-1205.89,0.00010632,2]
[352428075,1739097051510,-841.98,0.00010632,2]
[352428078,1739097051520,-814.6,0.00010632,2]
[352428080,1739097051531,-1000.0,0.00010632,2]
[352428082,1739097051542,-500.0,0.00010632,2]
[352428084,1739097051552,-847.89,0.00010632,2]
[352428086,1739097051562,-500.0,0.00010632,2]
[352428088,1739097051573,-739.79,0.00010632,2]
[352428090,1739097051583,-1006.62,0.00010632,2]
[352428093,1739097051594,-500.0,0.00010632,2]
[352428095,1739097051604,-509.89479419,0.00010632,2]
[352428097,1739097051614,-475.18857891,0.00010632,2]
[352428099,1739097051626,-500.0,0.00010632,2]
[352428101,1739097051636,-500.0,0.00010632,2]
[352428103,1739097051648,-507.99461049,0.00010632,2]
[352428105,1739097051660,-970.94,0.00010632,2]
[352428108,1739097051670,-500.0,0.00010632,2]
[352428110,1739097051681,-665.6,0.00010632,2]
[352428112,1739097051692,-500.0,0.00010632,2]
[352428114,1739097051702,-500.0,0.00010632,2]
[352428116,1739097051713,-516.44761308,0.00010632,2]
[352428118,1739097051724,-500.0,0.00010632,2]
[352428121,1739097051736,-1055.77,0.00010632,2]
[352428123,1739097051746,-500.0,0.00010632,2]
[352428125,1739097051757,-500.0,0.00010632,2]
[352428127,1739097051767,-500.0,0.00010632,2]
[352428129,1739097051778,-912.67,0.00010632,2]
[352428131,1739097051789,-1285.17,0.00010632,2]
[352428133,1739097051799,-503.16866585,0.00010632,2]
[352428135,1739097051810,-500.0,0.00010632,2]
[352428138,1739097051820,-500.0,0.00010632,2]
[352428140,1739097051832,-527.64,0.00010632,2]
[352428142,1739097051843,-500.0,0.00010632,2]
[352428144,1739097051853,-574.32,0.00010632,2]
[352428146,1739097051870,-1158.02,0.00010632,2]
[352428149,1739097051880,-500.0,0.00010632,2]
[352428151,1739097051891,-505.56750387,0.00010632,2]
[352428153,1739097051903,-1075.58,0.00010632,2]
[352428155,1739097051913,-510.93376044,0.00010632,2]
[352428157,1739097051924,-500.0,0.00010632,2]
[352428159,1739097051935,-500.0,0.00010632,2]
[352428162,1739097051946,-507.3543246,0.00010632,2]
[352428164,1739097051956,-500.0,0.00010632,2]
[352428166,1739097051967,-500.0,0.00010632,2]
[352428168,1739097051978,-1099.03,0.00010632,2]
[352428170,1739097051989,-500.0,0.00010632,2]
[352428172,1739097051999,-500.0,0.00010632,2]
[352428174,1739097052010,-500.0,0.00010632,2]
[352428176,1739097052020,-500.0,0.00010632,2]
[352428178,1739097052031,-500.0,0.00010632,2]
[352428179,1739097052042,-1100.1,0.00010632,2]